fUST/lending_fUST_20251010
["ID","MTS","AMOUNT","RATE_DAILY","PERIOD"]
[390514936,1760069439054,-500.0,0.00016438,2]
[390514938,1760069439065,-500.0,0.00016438,2]
[390514940,1760069439077,-500.0,0.00016438,2]
[390514943,1760069439089,-349.14356947,0.00016438,2]
[390514945,1760069439100,-500.0,0.00016438,2]
[390514947,1760069439112,-501.09545884,0.00016438,2]
[390514949,1760069439123,-500.0,0.00016438,2]
[390514952,1760069439135,-500.0,0.00016438,2]
[390514954,1760069439145,-500.0,0.00016438,2]
[390514956,1760069439157,-529.32790095,0.00016438,2]
[390514958,1760069439172,-307.92316517,0.00016438,2]
[390514960,1760069439183,-500.0,0.00016438,2]
[390514962,1760069439194,-500.0,0.00016438,2]
[390514965,1760069439205,-501.69374582,0.00016438,2]
[390514967,1760069439216,-500.0,0.00016438,2]
[390514969,1760069439228,-500.0,0.00016438,2]
[390514971,1760069439238,-500.0,0.00016438,2]
[390514973,1760069439249,-500.0,0.00016438,2]
[390514976,1760069439261,-571.57252726,0.00016438,2]
[390514978,1760069439274,-500.0,0.00016438,2]
[390514980,1760069439286,-500.0,0.00016438,2]
[390514982,1760069439297,-500.0,0.00016438,2]
[390514985,1760069439309,-500.0,0.00016438,2]
[390514986,1760069439321,-500.0,0.00016438,2]
[390514989,1760069439332,-500.0,0.00016438,2]
[390514991,1760069439345,-500.0,0.00016438,2]
[390514993,1760069439356,-502.51789228,0.00016438,2]
[390514995,1760069439368,-500.0,0.00016438,2]
[390514997,1760069439380,-502.06924811,0.00016438,2]
[390514999,1760069439392,-537.16480328,0.00016438,2]
[390515001,1760069439404,-500.0,0.00016438,2]
[390515004,1760069439415,-500.0,0.00016438,2]
[390515006,1760069439427,-500.0,0.00016438,2]
[390515008,1760069439439,-500.0,0.00016438,2]
[390515010,1760069439451,-500.0,0.00016438,2]
[390515013,1760069439462,-504.17224327,0.00016438,2]
[390515015,1760069439477,-500.0,0.00016438,2]
[390515017,1760069439489,-500.76029854,0.00016438,2]
[390515019,1760069439500,-500.0,0.00016438,2]
[390515021,1760069439512,-500.0,0.00016438,2]
[390515024,1760069439524,-500.0,0.00016438,2]
[390515026,1760069439534,-500.0,0.00016438,2]
[390515028,1760069439546,-501.60536764,0.00016438,2]
[390515030,1760069439557,-500.0,0.00016438,2]
[390515032,1760069439568,-500.0,0.00016438,2]
[390515035,1760069439580,-529.78508243,0.00016438,2]
[390515038,1760069439591,-500.80769288,0.00016438,2]
[390515040,1760069439602,-500.0,0.00016438,2]
[390515042,1760069439613,-500.0,0.00016438,2]
[390515044,1760069439624,-1047.0,0.00016438,2]
[390515046,1760069439635,-500.0,0.00016438,2]
[390515048,1760069439646,-500.0,0.00016438,2]
[390515050,1760069439657,-501.23739647,0.00016438,2]
[390515053,1760069439668,-500.0,0.00016438,2]
[390515055,1760069439679,-1198.02,0.00016438,2]
[390515057,1760069439690,-500.0,0.00016438,2]
[390515059,1760069439702,-500.0,0.00016438,2]
[390515061,1760069439713,-500.52230088,0.00016438,2]
[390515063,1760069439725,-500.99175476,0.00016438,2]
[390515066,1760069439737,-500.0,0.00016438,2]
[390515068,1760069439748,-500.0,0.00016438,2]
[390515070,1760069439759,-500.0,0.00016438,2]
[390515072,1760069439770,-500.90624379,0.00016438,2]
[390515074,1760069439782,-500.0,0.00016438,2]
[390515076,1760069439793,-503.29990184,0.00016438,2]
[390515079,1760069439805,-500.0,0.00016438,2]
[390515081,1760069439815,-501.25766401,0.00016438,2]
[390515083,1760069439826,-500.0,0.00016438,2]
[390515085,1760069439837,-501.96365242,0.00016438,2]
[390515087,1760069439848,-500.0,0.00016438,2]
[390515090,1760069439859,-500.0,0.00016438,2]
[390515092,1760069439870,-500.43630551,0.00016438,2]
[390515094,1760069439880,-500.0,0.00016438,2]
[390515096,1760069439891,-500.0,0.00016438,2]
[390515098,1760069439907,-500.0,0.00016438,2]
[390515100,1760069439918,-500.0,0.00016438,2]
[390515103,1760069439929,-500.0,0.00016438,2]
[390515105,1760069439939,-500.0,0.00016438,2]
[390515107,1760069439949,-1083.85,0.00016438,2]
[390515109,1760069439957,-500.0,0.00016438,2]
[390515111,1760069439966,-500.0,0.00016438,2]
[390515112,1760069439976,-500.0,0.00016438,2]
[390515114,1760069439984,-164.54126561,0.00016438,2]
[390515116,1760069439994,-500.0,0.00016438,2]
[390515119,1760069440005,-500.0,0.00016438,2]
[390515121,1760069440014,-421.83406148,0.00016438,2]
[390515123,1760069440023,-500.89359788,0.00016438,2]
[390515125,1760069440033,-500.0,0.00016438,2]
[390515154,1760069440295,-500.0,0.00016438,2]
[390515158,1760069440322,-895.59,0.00016438,2]
[390515160,1760069440332,-269.3180671,0.00016438,2]
[390515162,1760069440341,-500.0,0.00016438,2]
[390515164,1760069440351,-500.0,0.00016438,2]
[390515165,1760069440360,-500.0,0.00016438,2]
[390515167,1760069440369,-500.0,0.00016438,2]
[390515169,1760069440379,-500.0,0.00016438,2]
[390515171,1760069440389,-500.0,0.00016438,2]
[390515173,1760069440398,-501.28531194,0.00016438,2]
[390515175,1760069440407,-501.82525681,0.00016438,2]
[390515177,1760069440416,-500.0,0.00016438,2]
[390515179,1760069440425,-500.0,0.00016438,2]
[390515181,1760069440434,-500.0,0.00016438,2]
[390515183,1760069440443,-501.41943121,0.00016438,2]
[390515185,1760069440453,-529.63,0.00016438,2]
[390515187,1760069440464,-500.0,0.00016438,2]
[390515189,1760069440475,-500.0,0.00016438,2]
[390515191,1760069440484,-500.0,0.00016438,2]
[390515193,1760069440495,-469.30839582,0.00016438,2]
[390515195,1760069440504,-500.0,0.00016438,2]
[390515197,1760069440514,-500.0,0.00016438,2]
[390515200,1760069440528,-340.0008303,0.00016438,2]
[390515202,1760069440537,-500.87475987,0.00016438,2]
[390515204,1760069440548,-500.0,0.00016438,2]
[390515206,1760069440557,-500.0,0.00016438,2]
[390515208,1760069440567,-500.0,0.00016438,2]
[390515210,1760069440577,-500.0,0.00016438,2]
[390515212,1760069440586,-500.0,0.00016438,2]
[390515214,1760069440595,-500.0,0.00016438,2]
[390515216,1760069440604,-500.0,0.00016438,2]
[390515218,1760069440613,-500.0,0.00016438,2]
[390515220,1760069440622,-500.0,0.00016438,2]
[390515222,1760069440631,-500.0,0.00016438,2]
[390515224,1760069440640,-410.00552209,0.00016438,2]
[390515226,1760069440648,-500.0,0.00016438,2]
[390515228,1760069440657,-500.0,0.00016438,2]
[390515230,1760069440666,-500.0,0.00016438,2]
[390515232,1760069440675,-500.56236055,0.00016438,2]
[390515234,1760069440684,-500.42991027,0.00016438,2]
[390515236,1760069440694,-500.0,0.00016438,2]
[390515238,1760069440703,-500.0,0.00016438,2]
[390515240,1760069440713,-500.63790663,0.00016438,2]
[390515242,1760069440722,-500.0,0.00016438,2]
[390515244,1760069440732,-500.0,0.00016438,2]
[390515246,1760069440741,-500.0,0.00016438,2]
[390515248,1760069440750,-500.0,0.00016438,2]
[390515250,1760069440759,-500.0,0.00016438,2]
[390515252,1760069440768,-500.0,0.00016438,2]
[390515254,1760069440777,-500.0,0.00016438,2]
[390515256,1760069440786,-501.08569497,0.00016438,2]
[390515258,1760069440796,-501.3236961,0.00016438,2]
[390515260,1760069440805,-500.0,0.00016438,2]
[390515262,1760069440814,-501.78675145,0.00016438,2]
[390515264,1760069440823,-500.0,0.00016438,2]
[390515266,1760069440833,-369.60936673,0.00016438,2]
[390515268,1760069440844,-500.0,0.00016438,2]
[390515270,1760069440853,-500.0,0.00016438,2]
[390515272,1760069440862,-500.0,0.00016438,2]
[390515274,1760069440871,-500.0,0.00016438,2]
[390515277,1760069440884,-500.0,0.00016438,2]
[390515279,1760069440893,-500.86317803,0.00016438,2]
[390515281,1760069440903,-500.0,0.00016438,2]
[390515283,1760069440912,-501.3140315,0.00016438,2]
[390515285,1760069440921,-501.65952057,0.00016438,2]
[390515287,1760069440930,-500.0,0.00016438,2]
[390515289,1760069440939,-500.0,0.00016438,2]
[390515291,1760069440949,-500.0,0.00016438,2]
[390515293,1760069440958,-901.85,0.00016438,2]
[390515295,1760069440967,-500.0,0.00016438,2]
[390515297,1760069440975,-502.33088566,0.00016438,2]
[390515299,1760069440985,-500.0,0.00016438,2]
[390515301,1760069440997,-500.0,0.00016438,2]
[390515303,1760069441006,-500.0,0.00016438,2]
[390515305,1760069441015,-500.0,0.00016438,2]
[390515307,1760069441024,-500.0,0.00016438,2]
[390515309,1760069441034,-500.0,0.00016438,2]
[390515311,1760069441043,-500.0,0.00016438,2]
[390515313,1760069441051,-1250.35,0.00016438,2]
[390515315,1760069441061,-500.0,0.00016438,2]
[390515317,1760069441069,-1192.15,0.00016438,2]
[390515319,1760069441078,-500.0,0.00016438,2]
[390515321,1760069441087,-500.0,0.00016438,2]
[390515323,1760069441096,-500.0,0.00016438,2]
[390515325,1760069441105,-500.0,0.00016438,2]
[390515327,1760069441114,-500.0,0.00016438,2]
[390515329,1760069441123,-500.0,0.00016438,2]
[390515331,1760069441132,-502.07846543,0.00016438,2]
[390515333,1760069441141,-500.0,0.00016438,2]
[390515335,1760069441150,-500.0,0.00016438,2]
[390515337,1760069441159,-500.0,0.00016438,2]
[390515339,1760069441167,-500.0,0.00016438,2]
[390515341,1760069441176,-500.0,0.00016438,2]
[390515343,1760069441185,-948.55,0.00016438,2]
[390515345,1760069441195,-7197.48,0.00016438,2]
[390515347,1760069441203,-500.0,0.00016438,2]
[390515349,1760069441212,-501.12466354,0.00016438,2]
[390515351,1760069441221,-500.0,0.00016438,2]
[390515353,1760069441230,-500.0,0.00016438,2]
[390515355,1760069441239,-500.0,0.00016438,2]
[390515357,1760069441248,-501.79744955,0.00016438,2]
[390515359,1760069441256,-500.0,0.00016438,2]
[390515361,1760069441266,-500.0,0.00016438,2]
[390515362,1760069441275,-501.20554568,0.00016438,2]
[390515364,1760069441285,-500.0,0.00016438,2]
[390515366,1760069441294,-500.0,0.00016438,2]
[390515368,1760069441304,-500.0,0.00016438,2]
[390515370,1760069441313,-500.0,0.00016438,2]
[390515372,1760069441322,-500.0,0.00016438,2]
[390515374,1760069441331,-500.0,0.00016438,2]
[390515377,1760069441341,-500.0,0.00016438,2]
[390515378,1760069441350,-500.0,0.00016438,2]
[390515380,1760069441359,-500.0,0.00016438,2]
[390515382,1760069441369,-502.01975218,0.00016438,2]
[390515384,1760069441378,-1000.0,0.00016438,2]
[390515386,1760069441387,-359.37702675,0.00016438,2]
[390515388,1760069441396,-500.0,0.00016438,2]
[390515390,1760069441405,-500.0,0.00016438,2]
[390515392,1760069441414,-661.71,0.00016438,2]
[390515394,1760069441423,-501.81410703,0.00016438,2]
[390515396,1760069441432,-500.0,0.00016438,2]
[390515398,1760069441441,-500.0,0.00016438,2]
[390515400,1760069441450,-500.0,0.00016438,2]
[390515402,1760069441460,-500.0,0.00016438,2]
[390515404,1760069441472,-500.0,0.00016438,2]
[390515406,1760069441481,-500.0,0.00016438,2]
[390515408,1760069441490,-501.93308142,0.00016438,2]
[390515410,1760069441500,-852.66,0.00016438,2]
[390515412,1760069441509,-500.0,0.00016438,2]
[390515414,1760069441520,-925.42,0.00016438,2]
[390515416,1760069441529,-500.0,0.00016438,2]
[390515418,1760069441539,-500.0,0.00016438,2]
[390515420,1760069441550,-500.0,0.00016438,2]
[390515422,1760069441559,-5700.77,0.00016438,2]
[390515424,1760069441569,-1082.2,0.00016438,2]
[390515426,1760069441578,-500.0,0.00016438,2]
[390515428,1760069441587,-500.0,0.00016438,2]
[390515430,1760069441596,-859.58,0.00016438,2]
[390515432,1760069441606,-500.0,0.00016438,2]
[390515434,1760069441615,-630.45,0.00016438,2]
[390515436,1760069441624,-500.0,0.00016438,2]
[390515438,1760069441634,-500.0,0.00016438,2]
[390515440,1760069441643,-502.17831471,0.00016438,2]
[390515442,1760069441653,-445.02304004,0.00016438,2]
[390515444,1760069441662,-4927.06,0.00016438,2]
[390515446,1760069441671,-500.0,0.00016438,2]
[390515448,1760069441681,-1529.48,0.00016438,2]
[390515450,1760069441690,-500.0,0.00016438,2]
[390515452,1760069441699,-500.0,0.00016438,2]
[390515454,1760069441708,-500.0,0.00016438,2]
[390515456,1760069441718,-500.0,0.00016438,2]
[390515458,1760069441727,-500.0,0.00016438,2]
[390515460,1760069441736,-1000.51,0.00016438,2]
[390515462,1760069441745,-500.0,0.00016438,2]
[390515464,1760069441754,-500.0,0.00016438,2]
[390515466,1760069441763,-500.0,0.00016438,2]
[390515468,1760069441773,-500.0,0.00016438,2]
[390515470,1760069441783,-500.0,0.00016438,2]
[390515472,1760069441792,-500.0,0.00016438,2]
[390515474,1760069441801,-500.0,0.00016438,2]
[390515476,1760069441811,-500.0,0.00016438,2]
[390515478,1760069441821,-500.0,0.00016438,2]
[390515480,1760069441830,-770.06,0.00016438,2]
[390515482,1760069441841,-1439.03,0.00016438,2]
[390515484,1760069441850,-501.73212734,0.00016438,2]
[390515486,1760069441860,-500.0,0.00016438,2]
[390515488,1760069441869,-500.0,0.00016438,2]
[390515490,1760069441878,-500.0,0.00016438,2]
[390515492,1760069441887,-500.0,0.00016438,2]
[390515494,1760069441897,-500.0,0.00016438,2]
[390515496,1760069441907,-500.0,0.00016438,2]
[390515498,1760069441916,-500.0,0.00016438,2]
[390515500,1760069441926,-500.0,0.00016438,2]
[390515502,1760069441935,-500.0,0.00016438,2]
[390515504,1760069441944,-500.0,0.00016438,2]
[390515506,1760069441953,-1158.22,0.00016438,2]
[390515508,1760069441962,-500.0,0.00016438,2]
[390515510,1760069441972,-1149.82,0.00016438,2]
[390515512,1760069441981,-500.0,0.00016438,2]
[390515514,1760069441990,-500.0,0.00016438,2]
[390515516,1760069441999,-500.0,0.00016438,2]
[390515518,1760069442008,-501.57742464,0.00016438,2]
[390515520,1760069442017,-500.0,0.00016438,2]
[390515522,1760069442026,-501.11596704,0.00016438,2]
[390515524,1760069442037,-500.0,0.00016438,2]
[390515525,1760069442046,-500.0,0.00016438,2]
[390515527,1760069442056,-500.0,0.00016438,2]
[390515529,1760069442066,-500.0,0.00016438,2]
[390515531,1760069442075,-500.0,0.00016438,2]
[390515533,1760069442085,-500.0,0.00016438,2]
[390515535,1760069442095,-500.0,0.00016438,2]
[390515537,1760069442104,-500.0,0.00016438,2]
[390515539,1760069442113,-500.0,0.00016438,2]
[390515541,1760069442122,-1169.5,0.00016438,2]
[390515543,1760069442132,-500.0,0.00016438,2]
[390515545,1760069442141,-500.0,0.00016438,2]
[390515547,1760069442151,-2887.24,0.00016438,2]
[390515548,1760069442160,-1334.65,0.00016438,2]
[390515549,1760069442169,-584.71,0.00016438,2]
[390515550,1760069442179,-500.0,0.00016438,2]
[390515551,1760069442189,-881.64,0.00016438,2]
[390515552,1760069442199,-500.0,0.00016438,2]
[390515553,1760069442208,-500.0,0.00016438,2]
[390515554,1760069442218,-500.0,0.00016438,2]
[390515555,1760069442227,-500.0,0.00016438,2]
[390515556,1760069442237,-500.0,0.00016438,2]
[390515557,1760069442246,-500.0,0.00016438,2]
[390515558,1760069442255,-4026.62,0.00016438,2]
[390515559,1760069442265,-500.0,0.00016438,2]
[390515560,1760069442274,-500.0,0.00016438,2]
[390515561,1760069442286,-500.0,0.00016438,2]
[390515562,1760069442295,-322.9958514,0.00016438,2]
[390515563,1760069442304,-770.88,0.00016438,2]
[390515564,1760069442315,-500.0,0.00016438,2]
[390515565,1760069442325,-500.0,0.00016438,2]
[390515566,1760069442334,-500.0,0.00016438,2]
[390515567,1760069442343,-500.0,0.00016438,2]
[390515568,1760069442352,-720.19,0.00016438,2]
[390515569,1760069442362,-500.0,0.00016438,2]
[390515570,1760069442372,-500.0,0.00016438,2]
[390515571,1760069442381,-500.0,0.00016438,2]
[390515572,1760069442391,-552.92,0.00016438,2]
[390515573,1760069442400,-500.0,0.00016438,2]
[390515575,1760069442410,-500.0,0.00016438,2]
[390515576,1760069442419,-500.0,0.00016438,2]
[390515578,1760069442428,-500.0,0.00016438,2]
[390515580,1760069442437,-501.07654025,0.00016438,2]
[390515582,1760069442446,-398.80233492,0.00016438,2]
[390515584,1760069442455,-500.0,0.00016438,2]
[390515586,1760069442466,-501.87926337,0.00016438,2]
[390515589,1760069442479,-500.0,0.00016438,2]
[390515590,1760069442489,-500.0,0.00016438,2]
[390515593,1760069442498,-500.0,0.00016438,2]
[390515594,1760069442507,-779.02,0.00016438,2]
[390515597,1760069442518,-749.82,0.00016438,2]
[390515599,1760069442533,-500.0,0.00016438,2]
[390515601,1760069442542,-500.0,0.00016438,2]
[390515603,1760069442551,-500.0,0.00016438,2]
[390515606,1760069442561,-500.0,0.00016438,2]
[390515608,1760069442571,-1196.68,0.00016438,2]
[390515612,1760069442580,-500.0,0.00016438,2]
[390515616,1760069442589,-500.0,0.00016438,2]
[390515620,1760069442598,-501.64170303,0.00016438,2]
[390515624,1760069442607,-5606.3,0.00016438,2]
[390515627,1760069442616,-502.92534349,0.00016438,2]
[390515631,1760069442625,-501.81590937,0.00016438,2]
[390515635,1760069442634,-500.0,0.00016438,2]
[390515637,1760069442643,-500.0,0.00016438,2]
[390515640,1760069442652,-500.0,0.00016438,2]
[390515642,1760069442660,-500.0,0.00016438,2]
[390515644,1760069442669,-4040.06,0.00016438,2]
[390515646,1760069442678,-500.0,0.00016438,2]
[390515648,1760069442687,-3673.02,0.00016438,2]
[390515650,1760069442696,-3673.02,0.00016438,2]
[390515652,1760069442705,-3673.02,0.00016438,2]
[390515654,1760069442714,-3673.02,0.00016438,2]
[390515656,1760069442724,-3673.02,0.00016438,2]
[390515658,1760069442733,-3673.02,0.00016438,2]
[390515660,1760069442742,-3673.02,0.00016438,2]
[390515663,1760069442751,-500.0,0.00016438,2]
[390515666,1760069442760,-560.0,0.00016438,2]
[390515669,1760069442770,-3673.02,0.00016438,2]
[390515671,1760069442779,-500.0,0.00016438,2]
[390515674,1760069442788,-3673.02,0.00016438,2]
[390515676,1760069442797,-3673.02,0.00016438,2]
[390515678,1760069442806,-3673.02,0.00016438,2]
[390515680,1760069442815,-3673.02,0.00016438,2]
[390515682,1760069442826,-3673.02,0.00016438,2]
[390515684,1760069442836,-3673.02,0.00016438,2]
[390515686,1760069442845,-502.17725709,0.00016438,2]
[390515688,1760069442854,-3673.02,0.00016438,2]
[390515690,1760069442864,-3673.02,0.00016438,2]
[390515692,1760069442873,-3673.02,0.00016438,2]
[390515694,1760069442881,-500.0,0.00016438,2]
[390515696,1760069442890,-757.9,0.00016438,2]
[390515698,1760069442900,-502.29888454,0.00016438,2]
[390515700,1760069442909,-501.10395963,0.00016438,2]
[390515702,1760069442918,-633.56,0.00016438,2]
[390515704,1760069442928,-500.24482887,0.00016438,2]
[390515706,1760069442938,-500.0,0.00016438,2]
[390515708,1760069442947,-500.0,0.00016438,2]
[390515710,1760069442956,-724.11,0.00016438,2]
[390515712,1760069442965,-500.0,0.00016438,2]
[390515714,1760069442975,-1996.46,0.00016438,2]
[390515716,1760069442984,-500.0,0.00016438,2]
[390515718,1760069442993,-1287.49,0.00016438,2]
[390515720,1760069443003,-926.95,0.00016438,2]
[390515722,1760069443012,-500.0,0.00016438,2]
[390515724,1760069443021,-2438.53,0.00016438,2]
[390515726,1760069443032,-3380.15,0.00016438,2]
[390515728,1760069443041,-500.0,0.00016438,2]
[390515730,1760069443051,-500.0,0.00016438,2]
[390515732,1760069443060,-500.0,0.00016438,2]
[390515734,1760069443070,-500.0,0.00016438,2]
[390515736,1760069443079,-500.0,0.00016438,2]
[390515738,1760069443088,-502.03276905,0.00016438,2]
[390515740,1760069443097,-500.0,0.00016438,2]
[390515742,1760069443106,-1135.11,0.00016438,2]
[390515744,1760069443115,-956.06,0.00016438,2]
[390515745,1760069443125,-500.0,0.00016438,2]
[390515747,1760069443135,-500.0,0.00016438,2]
[390515749,1760069443144,-500.0,0.00016438,2]
[390515751,1760069443154,-500.0,0.00016438,2]
[390515753,1760069443163,-500.0,0.00016438,2]
[390515755,1760069443173,-500.0,0.00016438,2]
[390515757,1760069443182,-500.0,0.00016438,2]
[390515759,1760069443191,-725.14,0.00016438,2]
[390515761,1760069443200,-500.0,0.00016438,2]
[390515763,1760069443209,-566.97,0.00016438,2]
[390515765,1760069443219,-500.0,0.00016438,2]
[390515767,1760069443228,-500.0,0.00016438,2]
[390515769,1760069443238,-500.86053499,0.00016438,2]
[390515771,1760069443247,-613.87,0.00016438,2]
[390515773,1760069443256,-500.0,0.00016438,2]
[390515775,1760069443265,-500.0,0.00016438,2]
[390515777,1760069443275,-375.48229136,0.00016438,2]
[390515779,1760069443286,-500.0,0.00016438,2]
[390515781,1760069443296,-500.0,0.00016438,2]
[390515783,1760069443306,-648.32,0.00016438,2]
[390515786,1760069443316,-906.86,0.00016438,2]
[390515787,1760069443326,-500.0,0.00016438,2]
[390515789,1760069443336,-1833.98,0.00016438,2]
[390515791,1760069443346,-500.0,0.00016438,2]
[390515794,1760069443357,-2221.98,0.00016438,2]
[390515796,1760069443366,-500.0,0.00016438,2]
[390515798,1760069443375,-3638.26,0.00016438,2]
[390515800,1760069443385,-500.0,0.00016438,2]
[390515801,1760069443395,-2172.23,0.00016438,2]
[390515803,1760069443404,-502.38203244,0.00016438,2]
[390515805,1760069443413,-3381.93,0.00016438,2]
[390515807,1760069443422,-222.46611655,0.00016438,2]
[390515809,1760069443431,-500.0,0.00016438,2]
[390515811,1760069443440,-500.0,0.00016438,2]
[390515813,1760069443449,-1000.0,0.00016438,2]
[390515815,1760069443458,-498.57387504,0.00016493,2]
[390515817,1760069443471,-3673.02,0.0001661,2]
[390515819,1760069443483,-3673.02,0.00016674,2]
[390515822,1760069443492,-2000.0,0.00016675,2]
[390515839,1760069443650,-2000.0,0.00016675,2]
[390515841,1760069443660,-2000.0,0.00016675,2]
[390515843,1760069443669,-2000.0,0.00016675,2]
[390515845,1760069443678,-2000.0,0.00016675,2]
[390515847,1760069443687,-2000.0,0.00016675,2]
[390515849,1760069443696,-2000.0,0.00016675,2]
[390515851,1760069443706,-2000.0,0.00016675,2]
[390515853,1760069443715,-2000.0,0.00016675,2]
[390515855,1760069443724,-2000.0,0.00016675,2]
[390515857,1760069443734,-2000.0,0.00016675,2]
[390515859,1760069443743,-2000.0,0.00016675,2]
[390515861,1760069443752,-808.75,0.00016675,2]
[390515863,1760069443761,-2034.5284421,0.00016693,2]
[390515865,1760069443771,-1940.5473348,0.00016693,2]
[390515867,1760069443780,-327.3850708,0.00016693,2]
[390515869,1760069443790,-595.5495834,0.000167,2]
[390515871,1760069443799,-412.83,0.000167,2]
[390515873,1760069443808,-500.0,0.00016702,2]
[390515875,1760069443817,-3673.02,0.0001671,2]
[390515877,1760069443826,-3673.02,0.0001671,2]
[390515879,1760069443836,-3673.02,0.0001671,2]
[390515881,1760069443845,-3673.02,0.0001671,2]
[390515883,1760069443854,-3673.14809889,0.0001671,2]
[390515886,1760069443863,-500.0,0.00016712,2]
[390515887,1760069443873,-500.0,0.00016712,2]
[390515889,1760069443882,-500.0,0.00016712,2]
[390515892,1760069443892,-500.0,0.00016712,2]
[390515894,1760069443902,-500.0,0.00016712,2]
[390515895,1760069443911,-500.0,0.00016712,2]
[390515897,1760069443920,-500.0,0.00016712,2]
[390515899,1760069443929,-482.27098122,0.00016712,2]
[390515901,1760069443938,-500.0,0.00016712,2]
[390515903,1760069443948,-500.0,0.00016712,2]
[390515905,1760069443957,-500.0,0.00016712,2]
[390515907,1760069443967,-787.79,0.00016712,2]
[390515909,1760069443976,-900.89,0.00016712,2]
[390515911,1760069443985,-500.0,0.00016712,2]
[390515913,1760069443994,-500.0,0.00016712,2]
[390515915,1760069444003,-500.0,0.00016712,2]
[390515917,1760069444012,-152.275113,0.00016712,2]
[390515920,1760069444023,-151.0,0.00016712,2]
[390515922,1760069444033,-500.0,0.00016712,2]
[390515924,1760069444042,-502.83694199,0.00016712,2]
[390515925,1760069444051,-503.99328414,0.00016712,2]
[390515928,1760069444061,-500.0,0.00016712,2]
[390515930,1760069444070,-500.0,0.00016712,2]
[390515931,1760069444080,-500.0,0.00016712,2]
[390515933,1760069444089,-500.0,0.00016712,2]
[390515936,1760069444098,-500.0,0.00016712,2]
[390515938,1760069444108,-500.0,0.00016712,2]
[390515940,1760069444118,-628.26117317,0.00016712,2]
[390515941,1760069444127,-500.0,0.00016712,2]
[390515944,1760069444136,-504.28372938,0.00016712,2]
[390515945,1760069444145,-500.0,0.00016712,2]
[390515947,1760069444154,-500.0,0.00016712,2]
[390515949,1760069444163,-500.0,0.00016712,2]
[390515951,1760069444173,-589.02,0.00016712,2]
[390515953,1760069444182,-589.02,0.00016712,2]
[390515955,1760069444191,-500.0,0.00016712,2]
[390515957,1760069444201,-375.81580885,0.00016712,2]
[390515959,1760069444210,-500.0,0.00016712,2]
[390515961,1760069444220,-504.14856226,0.00016712,2]
[390515963,1760069444229,-807.25,0.00016712,2]
[390515965,1760069444238,-500.0,0.00016712,2]
[390515967,1760069444247,-500.0,0.00016712,2]
[390515969,1760069444257,-200.0,0.00016712,2]
[390515971,1760069444267,-500.0,0.00016712,2]
[390515973,1760069444276,-500.0,0.00016712,2]
[390515975,1760069444286,-500.0,0.00016712,2]
[390515977,1760069444296,-500.0,0.00016712,2]
[390515979,1760069444307,-500.0,0.00016712,2]
[390515982,1760069444316,-500.0,0.00016712,2]
[390515984,1760069444326,-500.0,0.00016712,2]
[390515986,1760069444335,-500.0,0.00016712,2]